[Event "Titled Tuesday Blitz February 21 Early 2023"]
[White "Derjabin, Ilja"]
[Black "lisjakzlatko1"]
[WhiteFideId "14104768"]
[WhiteElo "2333"]
[BlackElo "2162"]
[Result "1-0"]
[Round "01"]
[TimeControl "180+2"]
[Date "2023.02.21"]
[WhiteClock "0:02:01"]
[BlackClock "0:00:11"]

1. d4 {[%clk 0:02:59]}  d6 {[%clk 0:02:58]} 2. c4 {[%clk 0:02:59]}  e5 {[%clk 0:02:58]} 3. d5 {[%clk 0:02:59]}  Nf6 {[%clk 0:02:53]} 4. Nc3 {[%clk 0:03:00]}  Be7 {[%clk 0:02:52]} 5. e4 {[%clk 0:03:00]}  O-O {[%clk 0:02:51]} 6. Nge2 {[%clk 0:03:00]}  c6 {[%clk 0:02:48]} 7. Ng3 {[%clk 0:03:00]}  Re8 {[%clk 0:02:47]} 8. Be2 {[%clk 0:02:59]}  Bf8 {[%clk 0:02:46]} 9. O-O {[%clk 0:02:59]}  Na6 {[%clk 0:02:43]} 10. Be3 {[%clk 0:02:57]}  Nc7 {[%clk 0:02:30]} 11. Rc1 {[%clk 0:02:56]}  g6 {[%clk 0:02:15]} 12. f3 {[%clk 0:02:52]}  h6 {[%clk 0:02:08]} 13. Qd2 {[%clk 0:02:50]}  Kh7 {[%clk 0:02:08]} 14. h3 {[%clk 0:02:50]}  c5 {[%clk 0:01:59]} 15. f4 {[%clk 0:02:47]}  exf4 {[%clk 0:01:46]} 16. Bxf4 {[%clk 0:02:48]}  Bg7 {[%clk 0:01:46]} 17. Bd3 {[%clk 0:02:44]}  a6 {[%clk 0:01:35]} 18. Rce1 {[%clk 0:02:42]}  Ng8 {[%clk 0:01:28]} 19. e5 {[%clk 0:02:23]}  dxe5 {[%clk 0:01:22]} 20. Be3 {[%clk 0:02:23]}  Qe7 {[%clk 0:01:12]} 21. Nce4 {[%clk 0:02:13]}  Qf8 {[%clk 0:00:50]} 22. Bxc5 {[%clk 0:02:09]}  Ne7 {[%clk 0:00:43]} 23. d6 {[%clk 0:02:08]}  Ne6 {[%clk 0:00:20]} 24. dxe7 {[%clk 0:02:07]}  Qh8 {[%clk 0:00:15]} 25. Rxf7 {[%clk 0:02:02]}  Nf4 {[%clk 0:00:11]} 26. Nf6# {[%clk 0:02:01]} 1-0


[Site "https://www.chess.com"]

[Event "Titled Tuesday Blitz February 21 Early 2023"]
[White "Ljukin, Sergei"]
[Black "Bongo Akanga Ndjila, Barthelemy"]
[WhiteFideId "14102200"]
[BlackFideId "10609431"]
[WhiteElo "2362"]
[BlackElo "1824"]
[Result "0-1"]
[Round "01"]
[TimeControl "180+2"]
[Date "2023.02.21"]
[WhiteClock "0:00:01"]
[BlackClock "0:00:50"]

1. e4 {[%clk 0:02:52]}  e5 {[%clk 0:02:58]} 2. Nf3 {[%clk 0:02:52]}  Nc6 {[%clk 0:02:58]} 3. Bb5 {[%clk 0:02:51]}  a6 {[%clk 0:02:57]} 4. Ba4 {[%clk 0:02:51]}  Nf6 {[%clk 0:02:57]} 5. Qe2 {[%clk 0:02:51]}  b5 {[%clk 0:02:55]} 6. Bb3 {[%clk 0:02:51]}  Be7 {[%clk 0:02:54]} 7. c3 {[%clk 0:02:51]}  O-O {[%clk 0:02:53]} 8. O-O {[%clk 0:02:51]}  d6 {[%clk 0:02:53]} 9. d4 {[%clk 0:02:51]}  Bb7 {[%clk 0:02:48]} 10. Rd1 {[%clk 0:02:50]}  exd4 {[%clk 0:02:32]} 11. cxd4 {[%clk 0:02:49]}  Nb8 {[%clk 0:02:28]} 12. e5 {[%clk 0:02:47]}  Nd5 {[%clk 0:02:27]} 13. Qe4 {[%clk 0:02:29]}  dxe5 {[%clk 0:02:18]} 14. dxe5 {[%clk 0:02:26]}  c6 {[%clk 0:02:19]} 15. Nc3 {[%clk 0:02:15]}  Nd7 {[%clk 0:02:12]} 16. Nxd5 {[%clk 0:02:11]}  cxd5 {[%clk 0:02:12]} 17. Bxd5 {[%clk 0:02:12]}  Nc5 {[%clk 0:02:09]} 18. Qd4 {[%clk 0:01:54]}  Bxd5 {[%clk 0:01:53]} 19. Qxd5 {[%clk 0:01:52]}  Qc8 {[%clk 0:01:48]} 20. Qd2 {[%clk 0:01:31]}  Rd8 {[%clk 0:01:45]} 21. Qe2 {[%clk 0:01:30]}  Rxd1+ {[%clk 0:01:44]} 22. Qxd1 {[%clk 0:01:30]}  Qc7 {[%clk 0:01:44]} 23. Be3 {[%clk 0:01:23]}  Rd8 {[%clk 0:01:43]} 24. Qc2 {[%clk 0:01:23]}  Rd5 {[%clk 0:01:38]} 25. Rc1 {[%clk 0:01:04]}  Qd8 {[%clk 0:01:33]} 26. h3 {[%clk 0:00:57]}  Nd3 {[%clk 0:01:32]} 27. Rd1 {[%clk 0:00:37]}  Nb4 {[%clk 0:01:31]} 28. Rxd5 {[%clk 0:00:37]}  Qxd5 {[%clk 0:01:32]} 29. Qc8+ {[%clk 0:00:34]}  Bf8 {[%clk 0:01:31]} 30. a3 {[%clk 0:00:26]}  Nd3 {[%clk 0:01:25]} 31. Qxa6 {[%clk 0:00:20]}  Nxe5 {[%clk 0:01:23]} 32. Nxe5 {[%clk 0:00:15]}  Qxe5 {[%clk 0:01:23]} 33. b4 {[%clk 0:00:10]}  Qa1+ {[%clk 0:01:16]} 34. Kh2 {[%clk 0:00:09]}  Bxb4 {[%clk 0:01:15]} 35. Qc8+ {[%clk 0:00:04]}  Bf8 {[%clk 0:01:15]} 36. g3 {[%clk 0:00:01]}  Qxa3 {[%clk 0:01:14]} 37. Bd4 {[%clk 0:00:01]}  Qd6 {[%clk 0:01:10]} 38. Be3 {[%clk 0:00:01]}  b4 {[%clk 0:01:09]} 39. Qb7 {[%clk 0:00:01]}  h6 {[%clk 0:01:03]} 40. Bf4 {[%clk 0:00:02]}  Qc5 {[%clk 0:01:02]} 41. Be3 {[%clk 0:00:01]}  Qc4 {[%clk 0:01:02]} 42. Qb8 {[%clk 0:00:01]}  b3 {[%clk 0:00:57]} 43. Bf4 {[%clk 0:00:01]}  Qd5 {[%clk 0:00:54]} 44. Be3 {[%clk 0:00:01]}  h5 {[%clk 0:00:50]} 0-1


[Site "https://www.chess.com"]

[Event "Titled Tuesday Blitz February 21 Early 2023"]
[White "Suduvasachmatai"]
[Black "Prestia, Paris"]
[BlackFideId "30925959"]
[WhiteElo "2100"]
[BlackElo "2059"]
[Result "1/2-1/2"]
[Round "01"]
[TimeControl "180+2"]
[Date "2023.02.21"]
[WhiteClock "0:01:06"]
[BlackClock "0:00:06"]

1. e4 {[%clk 0:02:57]}  c5 {[%clk 0:02:59]} 2. c3 {[%clk 0:02:57]}  Nf6 {[%clk 0:02:59]} 3. e5 {[%clk 0:02:56]}  Nd5 {[%clk 0:02:59]} 4. d4 {[%clk 0:02:57]}  cxd4 {[%clk 0:02:59]} 5. cxd4 {[%clk 0:02:58]}  e6 {[%clk 0:03:00]} 6. Nc3 {[%clk 0:02:56]}  Nxc3 {[%clk 0:03:00]} 7. bxc3 {[%clk 0:02:57]}  b6 {[%clk 0:03:01]} 8. Nf3 {[%clk 0:02:56]}  Bb7 {[%clk 0:03:01]} 9. Be2 {[%clk 0:02:56]}  d6 {[%clk 0:03:01]} 10. O-O {[%clk 0:02:56]}  Nd7 {[%clk 0:03:02]} 11. Bf4 {[%clk 0:02:54]}  Qc7 {[%clk 0:03:02]} 12. Rc1 {[%clk 0:02:53]}  dxe5 {[%clk 0:03:01]} 13. Nxe5 {[%clk 0:02:53]}  Nxe5 {[%clk 0:03:01]} 14. Bxe5 {[%clk 0:02:47]}  Bd6 {[%clk 0:03:01]} 15. Bb5+ {[%clk 0:02:43]}  Kf8 {[%clk 0:02:56]} 16. Bxd6+ {[%clk 0:02:33]}  Qxd6 {[%clk 0:02:57]} 17. c4 {[%clk 0:02:33]}  Rd8 {[%clk 0:02:43]} 18. c5 {[%clk 0:02:27]}  Qd5 {[%clk 0:01:56]} 19. f3 {[%clk 0:02:25]}  g5 {[%clk 0:01:10]} 20. Bc4 {[%clk 0:02:17]}  Qxd4+ {[%clk 0:01:08]} 21. Qxd4 {[%clk 0:02:15]}  Rxd4 {[%clk 0:01:09]} 22. Bb3 {[%clk 0:02:05]}  Kg7 {[%clk 0:01:03]} 23. c6 {[%clk 0:02:02]}  Ba6 {[%clk 0:01:01]} 24. Rfd1 {[%clk 0:02:00]}  Rxd1+ {[%clk 0:00:56]} 25. Rxd1 {[%clk 0:02:01]}  Rc8 {[%clk 0:00:56]} 26. Rd7 {[%clk 0:01:56]}  Rxc6 {[%clk 0:00:53]} 27. Rxa7 {[%clk 0:01:56]}  Bc4 {[%clk 0:00:51]} 28. Ba4 {[%clk 0:01:54]}  b5 {[%clk 0:00:48]} 29. Bd1 {[%clk 0:01:52]}  Rd6 {[%clk 0:00:45]} 30. Bc2 {[%clk 0:01:52]}  Rd2 {[%clk 0:00:43]} 31. Be4 {[%clk 0:01:51]}  Rxa2 {[%clk 0:00:39]} 32. Rc7 {[%clk 0:01:50]}  Rd2 {[%clk 0:00:37]} 33. h3 {[%clk 0:01:45]}  h6 {[%clk 0:00:38]} 34. Bc6 {[%clk 0:01:40]}  Rd8 {[%clk 0:00:31]} 35. Rb7 {[%clk 0:01:36]}  Rd1+ {[%clk 0:00:25]} 36. Kh2 {[%clk 0:01:35]}  Rb1 {[%clk 0:00:25]} 37. Be8 {[%clk 0:01:34]}  e5 {[%clk 0:00:25]} 38. Kg3 {[%clk 0:01:34]}  h5 {[%clk 0:00:25]} 39. h4 {[%clk 0:01:33]}  gxh4+ {[%clk 0:00:21]} 40. Kxh4 {[%clk 0:01:32]}  Rh1+ {[%clk 0:00:19]} 41. Kg5 {[%clk 0:01:28]}  Rh2 {[%clk 0:00:18]} 42. g3 {[%clk 0:01:20]}  Rh3 {[%clk 0:00:18]} 43. g4 {[%clk 0:01:18]}  hxg4 {[%clk 0:00:14]} 44. fxg4 {[%clk 0:01:19]}  Rb3 {[%clk 0:00:14]} 45. Kf5 {[%clk 0:01:16]}  Be6+ {[%clk 0:00:09]} 46. Kxe5 {[%clk 0:01:16]}  Bxg4 {[%clk 0:00:10]} 47. Bxf7 {[%clk 0:01:12]}  Rg3 {[%clk 0:00:07]} 48. Kf4 {[%clk 0:01:10]}  Rg1 {[%clk 0:00:06]} 49. Be6+ {[%clk 0:01:09]}  Kf6 {[%clk 0:00:07]} 50. Bxg4 {[%clk 0:01:10]}  Rb1 {[%clk 0:00:07]} 51. Bf3 {[%clk 0:01:08]}  Rb4+ {[%clk 0:00:07]} 52. Ke3 {[%clk 0:01:07]}  Ke5 {[%clk 0:00:07]} 53. Re7+ {[%clk 0:01:06]}  Kd6 {[%clk 0:00:07]} 54. Re4 {[%clk 0:01:06]}  Rxe4+ {[%clk 0:00:06]} 55. Bxe4 {[%clk 0:01:06]} 1/2-1/2


[Site "https://www.chess.com"]

[Event "Titled Tuesday Blitz February 21 Early 2023"]
[White "Ilkhomi, Jaloliddin"]
[Black "Delorme, Alban"]
[WhiteFideId "14700948"]
[BlackFideId "623636"]
[WhiteElo "1997"]
[BlackElo "2298"]
[Result "1-0"]
[Round "01"]
[TimeControl "180+2"]
[Date "2023.02.21"]
[WhiteClock "0:01:06"]
[BlackClock "0:00:12"]

1. Nf3 {[%clk 0:02:59]}  Nf6 {[%clk 0:03:00]} 2. d4 {[%clk 0:02:59]}  g6 {[%clk 0:02:59]} 3. c3 {[%clk 0:02:56]}  Bg7 {[%clk 0:02:58]} 4. Bg5 {[%clk 0:02:56]}  O-O {[%clk 0:02:57]} 5. Nbd2 {[%clk 0:02:57]}  d6 {[%clk 0:02:54]} 6. e4 {[%clk 0:02:57]}  c5 {[%clk 0:02:54]} 7. dxc5 {[%clk 0:02:57]}  dxc5 {[%clk 0:02:54]} 8. Bc4 {[%clk 0:02:58]}  Nc6 {[%clk 0:02:50]} 9. O-O {[%clk 0:02:58]}  Qc7 {[%clk 0:02:46]} 10. Qe2 {[%clk 0:02:57]}  Bg4 {[%clk 0:02:45]} 11. h3 {[%clk 0:02:56]}  Bxf3 {[%clk 0:02:44]} 12. Nxf3 {[%clk 0:02:57]}  Ne5 {[%clk 0:02:38]} 13. Bf4 {[%clk 0:02:38]}  Nfd7 {[%clk 0:02:22]} 14. Rad1 {[%clk 0:02:34]}  Qb6 {[%clk 0:02:02]} 15. Nxe5 {[%clk 0:02:14]}  Nxe5 {[%clk 0:01:57]} 16. Bxe5 {[%clk 0:02:14]}  Bxe5 {[%clk 0:01:57]} 17. f4 {[%clk 0:02:15]}  Bg7 {[%clk 0:01:53]} 18. e5 {[%clk 0:02:16]}  Rad8 {[%clk 0:01:30]} 19. e6 {[%clk 0:01:45]}  f5 {[%clk 0:01:22]} 20. Rd7 {[%clk 0:01:44]}  Bf6 {[%clk 0:01:02]} 21. Rfd1 {[%clk 0:01:43]}  Rxd7 {[%clk 0:01:00]} 22. exd7+ {[%clk 0:01:42]}  Kg7 {[%clk 0:00:56]} 23. Qe6 {[%clk 0:01:13]}  Qxe6 {[%clk 0:00:41]} 24. Bxe6 {[%clk 0:01:14]}  Rd8 {[%clk 0:00:40]} 25. Kf2 {[%clk 0:01:07]}  Kf8 {[%clk 0:00:20]} 26. Kf3 {[%clk 0:01:06]}  Bh8 {[%clk 0:00:19]} 27. g4 {[%clk 0:01:07]}  fxg4+ {[%clk 0:00:20]} 28. hxg4 {[%clk 0:01:07]}  Kg7 {[%clk 0:00:20]} 29. g5 {[%clk 0:01:07]}  Kf8 {[%clk 0:00:16]} 30. Ke4 {[%clk 0:01:07]}  Bg7 {[%clk 0:00:14]} 31. Kd5 {[%clk 0:01:07]}  h6 {[%clk 0:00:11]} 32. Kxc5 {[%clk 0:01:05]}  hxg5 {[%clk 0:00:12]} 33. fxg5 {[%clk 0:01:04]}  Be5 {[%clk 0:00:13]} 34. Rf1+ {[%clk 0:01:05]}  Kg7 {[%clk 0:00:11]} 35. Rf7+ {[%clk 0:01:05]}  Kh8 {[%clk 0:00:12]} 36. Rxe7 {[%clk 0:01:06]}  Bf4 {[%clk 0:00:12]} 37. Re8+ {[%clk 0:01:06]} 1-0


[Site "https://www.chess.com"]

[Event "Titled Tuesday Blitz February 21 Early 2023"]
[White "Larina, Maria"]
[Black "Kubicka, Anna"]
[WhiteFideId "24113182"]
[BlackFideId "1152254"]
[WhiteElo "1948"]
[BlackElo "2240"]
[Result "0-1"]
[Round "01"]
[TimeControl "180+2"]
[Date "2023.02.21"]
[WhiteClock "0:00:49"]
[BlackClock "0:01:37"]

1. e4 {[%clk 0:02:58]}  c5 {[%clk 0:02:58]} 2. Nc3 {[%clk 0:02:58]}  g6 {[%clk 0:02:55]} 3. g3 {[%clk 0:02:57]}  Bg7 {[%clk 0:02:56]} 4. Bg2 {[%clk 0:02:56]}  Nc6 {[%clk 0:02:56]} 5. d3 {[%clk 0:02:57]}  d6 {[%clk 0:02:55]} 6. f4 {[%clk 0:02:54]}  e5 {[%clk 0:02:54]} 7. Nf3 {[%clk 0:02:53]}  Nge7 {[%clk 0:02:54]} 8. O-O {[%clk 0:02:52]}  O-O {[%clk 0:02:51]} 9. Nd5 {[%clk 0:02:47]}  Nxd5 {[%clk 0:02:51]} 10. exd5 {[%clk 0:02:47]}  Ne7 {[%clk 0:02:50]} 11. c4 {[%clk 0:02:44]}  exf4 {[%clk 0:02:48]} 12. gxf4 {[%clk 0:02:20]}  Bg4 {[%clk 0:02:44]} 13. Qe1 {[%clk 0:02:16]}  Bxf3 {[%clk 0:02:41]} 14. Bxf3 {[%clk 0:02:09]}  Nf5 {[%clk 0:02:42]} 15. Kh1 {[%clk 0:02:01]}  Re8 {[%clk 0:02:40]} 16. Qf2 {[%clk 0:01:56]}  Nd4 {[%clk 0:02:33]} 17. Bg4 {[%clk 0:01:48]}  f5 {[%clk 0:02:31]} 18. Bh3 {[%clk 0:01:46]}  Qe7 {[%clk 0:02:30]} 19. Bg2 {[%clk 0:01:13]}  Qe2 {[%clk 0:02:25]} 20. Qg3 {[%clk 0:01:07]}  Nc2 {[%clk 0:02:08]} 21. Rb1 {[%clk 0:01:05]}  Ne3 {[%clk 0:02:03]} 22. Re1 {[%clk 0:00:50]}  Nxg2 {[%clk 0:01:41]} 23. Qxg2 {[%clk 0:00:51]}  Qxe1+ {[%clk 0:01:40]} 24. Qg1 {[%clk 0:00:48]}  Qxg1+ {[%clk 0:01:37]} 25. Kxg1 {[%clk 0:00:48]}  Re1+ {[%clk 0:01:37]} 26. Kf2 {[%clk 0:00:49]}  Rae8 {[%clk 0:01:37]} 0-1


[Site "https://www.chess.com"]

[Event "Titled Tuesday Blitz February 21 Early 2023"]
[White "Lehtosaari, Mauri"]
[Black "Michalski, Olaf"]
[WhiteFideId "501999"]
[BlackFideId "1106740"]
[WhiteElo "2176"]
[BlackElo "2273"]
[Result "1/2-1/2"]
[Round "01"]
[TimeControl "180+2"]
[Date "2023.02.21"]
[WhiteClock "0:00:09"]
[BlackClock "0:00:01"]

1. d4 {[%clk 0:02:57]}  d6 {[%clk 0:02:59]} 2. Nf3 {[%clk 0:02:56]}  g6 {[%clk 0:02:58]} 3. c3 {[%clk 0:02:56]}  Bg7 {[%clk 0:02:57]} 4. Bg5 {[%clk 0:02:56]}  h6 {[%clk 0:02:53]} 5. Bh4 {[%clk 0:02:55]}  Nd7 {[%clk 0:02:53]} 6. e3 {[%clk 0:02:53]}  c6 {[%clk 0:02:51]} 7. Bc4 {[%clk 0:02:52]}  Ngf6 {[%clk 0:02:48]} 8. Nbd2 {[%clk 0:02:51]}  e5 {[%clk 0:02:36]} 9. dxe5 {[%clk 0:02:47]}  dxe5 {[%clk 0:02:34]} 10. Qc2 {[%clk 0:02:27]}  Qc7 {[%clk 0:02:21]} 11. a4 {[%clk 0:02:19]}  Nc5 {[%clk 0:02:05]} 12. e4 {[%clk 0:01:52]}  Be6 {[%clk 0:01:30]} 13. Bxe6 {[%clk 0:01:19]}  Nxe6 {[%clk 0:01:28]} 14. Bg3 {[%clk 0:01:17]}  Nh5 {[%clk 0:01:28]} 15. Nc4 {[%clk 0:01:14]}  Nhf4 {[%clk 0:01:10]} 16. O-O {[%clk 0:01:05]}  O-O {[%clk 0:01:08]} 17. a5 {[%clk 0:00:53]}  b5 {[%clk 0:00:48]} 18. Ne3 {[%clk 0:00:40]}  Rfd8 {[%clk 0:00:31]} 19. b4 {[%clk 0:00:29]}  a6 {[%clk 0:00:28]} 20. Rad1 {[%clk 0:00:28]}  f6 {[%clk 0:00:20]} 21. Qb3 {[%clk 0:00:23]}  Qf7 {[%clk 0:00:19]} 22. Bxf4 {[%clk 0:00:20]}  Nxf4 {[%clk 0:00:17]} 23. Qxf7+ {[%clk 0:00:20]}  Kxf7 {[%clk 0:00:18]} 24. Rc1 {[%clk 0:00:15]}  Rd3 {[%clk 0:00:13]} 25. Rc2 {[%clk 0:00:15]}  Rad8 {[%clk 0:00:11]} 26. Re1 {[%clk 0:00:11]}  Ke6 {[%clk 0:00:11]} 27. g3 {[%clk 0:00:10]}  Nh5 {[%clk 0:00:11]} 28. Kf1 {[%clk 0:00:10]}  f5 {[%clk 0:00:11]} 29. exf5+ {[%clk 0:00:09]}  gxf5 {[%clk 0:00:11]} 30. Nh4 {[%clk 0:00:09]}  f4 {[%clk 0:00:08]} 31. gxf4 {[%clk 0:00:09]}  Nxf4 {[%clk 0:00:08]} 32. Nhg2 {[%clk 0:00:08]}  Nd5 {[%clk 0:00:07]} 33. Nxd5 {[%clk 0:00:07]}  Kxd5 {[%clk 0:00:06]} 34. Ne3+ {[%clk 0:00:07]}  Ke6 {[%clk 0:00:06]} 35. c4 {[%clk 0:00:08]}  Bf6 {[%clk 0:00:04]} 36. cxb5 {[%clk 0:00:07]}  cxb5 {[%clk 0:00:05]} 37. Rc6+ {[%clk 0:00:08]}  R8d6 {[%clk 0:00:05]} 38. Rec1 {[%clk 0:00:09]}  Rb3 {[%clk 0:00:04]} 39. Rxd6+ {[%clk 0:00:08]}  Kxd6 {[%clk 0:00:05]} 40. Nf5+ {[%clk 0:00:09]}  Ke6 {[%clk 0:00:04]} 41. Ne3 {[%clk 0:00:08]}  Rxb4 {[%clk 0:00:04]} 42. Rc6+ {[%clk 0:00:08]}  Kf7 {[%clk 0:00:03]} 43. Rxa6 {[%clk 0:00:09]}  Rb1+ {[%clk 0:00:03]} 44. Ke2 {[%clk 0:00:09]}  Ra1 {[%clk 0:00:04]} 45. Ra7+ {[%clk 0:00:09]}  Kg6 {[%clk 0:00:04]} 46. Ra6 {[%clk 0:00:10]}  Kg5 {[%clk 0:00:03]} 47. h3 {[%clk 0:00:10]}  e4 {[%clk 0:00:03]} 48. Ra7 {[%clk 0:00:07]}  Ra2+ {[%clk 0:00:02]} 49. Kf1 {[%clk 0:00:08]}  Bd4 {[%clk 0:00:02]} 50. Nd1 {[%clk 0:00:07]}  Bxa7 {[%clk 0:00:01]} 51. Ke1 {[%clk 0:00:06]}  Rxa5 {[%clk 0:00:02]} 52. Ke2 {[%clk 0:00:06]}  Ra1 {[%clk 0:00:02]} 53. Nc3 {[%clk 0:00:06]}  Ra3 {[%clk 0:00:02]} 54. Nxe4+ {[%clk 0:00:06]}  Kf4 {[%clk 0:00:02]} 55. Nd6 {[%clk 0:00:06]}  Ra2+ {[%clk 0:00:03]} 56. Kd3 {[%clk 0:00:07]}  Rxf2 {[%clk 0:00:03]} 57. Nxb5 {[%clk 0:00:07]}  Bb6 {[%clk 0:00:03]} 58. Nd6 {[%clk 0:00:07]}  Rf3+ {[%clk 0:00:04]} 59. Ke2 {[%clk 0:00:06]}  Rxh3 {[%clk 0:00:05]} 60. Nc4 {[%clk 0:00:07]}  Rh2+ {[%clk 0:00:04]} 61. Kf1 {[%clk 0:00:07]}  Ba7 {[%clk 0:00:04]} 62. Na3 {[%clk 0:00:06]}  Ke4 {[%clk 0:00:03]} 63. Nb5 {[%clk 0:00:06]}  Bc5 {[%clk 0:00:04]} 64. Nc7 {[%clk 0:00:07]}  Ke5 {[%clk 0:00:03]} 65. Nb5 {[%clk 0:00:06]}  Kd5 {[%clk 0:00:03]} 66. Nc3+ {[%clk 0:00:07]}  Kc4 {[%clk 0:00:04]} 67. Ne4 {[%clk 0:00:07]}  Kd4 {[%clk 0:00:03]} 68. Ng3 {[%clk 0:00:07]}  Ra2 {[%clk 0:00:02]} 69. Nf5+ {[%clk 0:00:07]}  Ke5 {[%clk 0:00:02]} 70. Nxh6 {[%clk 0:00:07]}  Kf4 {[%clk 0:00:02]} 71. Nf7 {[%clk 0:00:07]}  Kf3 {[%clk 0:00:02]} 72. Ke1 {[%clk 0:00:07]}  Bb4+ {[%clk 0:00:02]} 73. Kd1 {[%clk 0:00:08]}  Rd2+ {[%clk 0:00:02]} 74. Kc1 {[%clk 0:00:08]}  Rd5 {[%clk 0:00:02]} 75. Kc2 {[%clk 0:00:06]}  Kf4 {[%clk 0:00:02]} 76. Kb3 {[%clk 0:00:06]}  Kf5 {[%clk 0:00:02]} 77. Kc4 {[%clk 0:00:07]}  Rc5+ {[%clk 0:00:01]} 78. Kxb4 {[%clk 0:00:07]}  Rc7 {[%clk 0:00:01]} 79. Nd6+ {[%clk 0:00:07]}  Ke6 {[%clk 0:00:01]} 80. Nc4 {[%clk 0:00:08]}  Rb7+ {[%clk 0:00:01]} 81. Kc5 {[%clk 0:00:08]}  Rc7+ {[%clk 0:00:01]} 82. Kd4 {[%clk 0:00:09]}  Kf5 {[%clk 0:00:01]} 83. Kd5 {[%clk 0:00:09]}  Rxc4 {[%clk 0:00:01]} 84. Kxc4 {[%clk 0:00:09]} 1/2-1/2


[Site "https://www.chess.com"]

[Event "Titled Tuesday Blitz February 21 Early 2023"]
[White "Levine, David"]
[Black "Baghdasaryan, Vahe"]
[WhiteFideId "2011611"]
[BlackFideId "13303139"]
[WhiteElo "2040"]
[BlackElo "2257"]
[Result "0-1"]
[Round "01"]
[TimeControl "180+2"]
[Date "2023.02.21"]
[WhiteClock "0:00:04"]
[BlackClock "0:00:40"]

1. d4 {[%clk 0:03:00]}  d5 {[%clk 0:02:59]} 2. c4 {[%clk 0:02:50]}  c6 {[%clk 0:02:58]} 3. Nf3 {[%clk 0:02:49]}  Nf6 {[%clk 0:02:57]} 4. Nc3 {[%clk 0:02:49]}  e6 {[%clk 0:02:55]} 5. g3 {[%clk 0:02:46]}  dxc4 {[%clk 0:02:52]} 6. Bg2 {[%clk 0:02:45]}  b5 {[%clk 0:02:53]} 7. O-O {[%clk 0:02:43]}  a6 {[%clk 0:02:52]} 8. b3 {[%clk 0:02:38]}  cxb3 {[%clk 0:02:51]} 9. axb3 {[%clk 0:02:38]}  Bb4 {[%clk 0:02:48]} 10. Qc2 {[%clk 0:02:34]}  O-O {[%clk 0:02:44]} 11. Bg5 {[%clk 0:02:27]}  h6 {[%clk 0:02:37]} 12. Bxf6 {[%clk 0:02:24]}  Qxf6 {[%clk 0:02:38]} 13. Ne4 {[%clk 0:02:24]}  Qe7 {[%clk 0:02:38]} 14. Rfc1 {[%clk 0:02:19]}  a5 {[%clk 0:02:33]} 15. e3 {[%clk 0:02:16]}  Bb7 {[%clk 0:02:31]} 16. Ne5 {[%clk 0:02:15]}  c5 {[%clk 0:02:27]} 17. dxc5 {[%clk 0:02:04]}  Rc8 {[%clk 0:02:22]} 18. Nd3 {[%clk 0:02:01]}  Na6 {[%clk 0:02:15]} 19. Nxb4 {[%clk 0:01:45]}  Nxb4 {[%clk 0:02:14]} 20. Qe2 {[%clk 0:01:36]}  Bxe4 {[%clk 0:02:04]} 21. Bxe4 {[%clk 0:01:35]}  Rab8 {[%clk 0:02:04]} 22. Rxa5 {[%clk 0:01:31]}  Rxc5 {[%clk 0:02:03]} 23. Rca1 {[%clk 0:01:04]}  f5 {[%clk 0:01:46]} 24. Bg2 {[%clk 0:01:01]}  Rbc8 {[%clk 0:01:45]} 25. h4 {[%clk 0:00:57]}  Qf6 {[%clk 0:01:44]} 26. Kh2 {[%clk 0:00:48]}  Rc2 {[%clk 0:01:29]} 27. Qf3 {[%clk 0:00:42]}  Nd3 {[%clk 0:01:27]} 28. Ra8 {[%clk 0:00:36]}  Rxa8 {[%clk 0:01:15]} 29. Rxa8+ {[%clk 0:00:19]}  Kh7 {[%clk 0:01:15]} 30. Qh5 {[%clk 0:00:14]}  Rxf2 {[%clk 0:00:44]} 31. Qe8 {[%clk 0:00:12]}  Rxg2+ {[%clk 0:00:44]} 32. Kxg2 {[%clk 0:00:11]}  Qb2+ {[%clk 0:00:44]} 33. Kh1 {[%clk 0:00:04]}  Qc1+ {[%clk 0:00:40]} 0-1


[Site "https://www.chess.com"]

[Event "Titled Tuesday Blitz February 21 Early 2023"]
[White "Petrovic, Aleksa"]
[Black "kiwibobo"]
[WhiteFideId "967629"]
[WhiteElo "2332"]
[BlackElo "2140"]
[Result "1-0"]
[Round "01"]
[TimeControl "180+2"]
[Date "2023.02.21"]
[WhiteClock "0:02:01"]
[BlackClock "0:02:19"]

1. d4 {[%clk 0:02:58]}  Nf6 {[%clk 0:02:59]} 2. c4 {[%clk 0:02:58]}  g6 {[%clk 0:03:00]} 3. f3 {[%clk 0:02:56]}  d5 {[%clk 0:02:59]} 4. cxd5 {[%clk 0:02:56]}  Nxd5 {[%clk 0:03:00]} 5. e4 {[%clk 0:02:56]}  Nb6 {[%clk 0:03:00]} 6. Nc3 {[%clk 0:02:55]}  Bg7 {[%clk 0:03:01]} 7. Be3 {[%clk 0:02:55]}  O-O {[%clk 0:03:01]} 8. Qd2 {[%clk 0:02:55]}  Nc6 {[%clk 0:03:01]} 9. O-O-O {[%clk 0:02:55]}  e5 {[%clk 0:02:53]} 10. d5 {[%clk 0:02:54]}  Na5 {[%clk 0:02:49]} 11. b3 {[%clk 0:02:45]}  c6 {[%clk 0:02:47]} 12. h4 {[%clk 0:02:39]}  h5 {[%clk 0:02:38]} 13. g4 {[%clk 0:02:39]}  cxd5 {[%clk 0:02:34]} 14. exd5 {[%clk 0:02:38]}  hxg4 {[%clk 0:02:29]} 15. h5 {[%clk 0:02:37]}  f5 {[%clk 0:02:29]} 16. hxg6 {[%clk 0:02:30]}  f4 {[%clk 0:02:28]} 17. Qh2 {[%clk 0:02:21]}  Rf5 {[%clk 0:02:19]} 18. Bc5 {[%clk 0:02:01]} 1-0


[Site "https://www.chess.com"]

[Event "Titled Tuesday Blitz February 21 Early 2023"]
[White "Gurevich, Ilya"]
[Black "Di Nicolantonio, Lucas"]
[WhiteFideId "2000628"]
[BlackFideId "680460"]
[WhiteElo "2586"]
[BlackElo "2376"]
[Result "0-1"]
[Round "01"]
[TimeControl "180+2"]
[Date "2023.02.21"]
[WhiteClock "0:01:07"]
[BlackClock "0:01:17"]

1. d4 {[%clk 0:02:59]}  Nf6 {[%clk 0:02:58]} 2. c4 {[%clk 0:02:59]}  e6 {[%clk 0:02:55]} 3. Nf3 {[%clk 0:02:59]}  d5 {[%clk 0:02:56]} 4. Nc3 {[%clk 0:02:59]}  c6 {[%clk 0:02:56]} 5. Bg5 {[%clk 0:02:59]}  h6 {[%clk 0:02:56]} 6. Bh4 {[%clk 0:02:59]}  dxc4 {[%clk 0:02:53]} 7. a4 {[%clk 0:02:56]}  Bb4 {[%clk 0:02:51]} 8. e3 {[%clk 0:02:50]}  b5 {[%clk 0:02:46]} 9. Be2 {[%clk 0:02:50]}  Bb7 {[%clk 0:02:41]} 10. O-O {[%clk 0:02:49]}  Bxc3 {[%clk 0:02:28]} 11. bxc3 {[%clk 0:02:49]}  Nbd7 {[%clk 0:02:26]} 12. Qc2 {[%clk 0:02:35]}  a6 {[%clk 0:02:06]} 13. Ne5 {[%clk 0:02:34]}  c5 {[%clk 0:01:58]} 14. axb5 {[%clk 0:02:29]}  axb5 {[%clk 0:01:56]} 15. Nxd7 {[%clk 0:02:28]}  Qxd7 {[%clk 0:01:53]} 16. Rxa8+ {[%clk 0:02:28]}  Bxa8 {[%clk 0:01:54]} 17. Ra1 {[%clk 0:02:26]}  O-O {[%clk 0:01:53]} 18. Bxf6 {[%clk 0:02:25]}  gxf6 {[%clk 0:01:53]} 19. dxc5 {[%clk 0:02:19]}  f5 {[%clk 0:01:46]} 20. h3 {[%clk 0:01:40]}  Rd8 {[%clk 0:01:44]} 21. Ra5 {[%clk 0:01:30]}  Be4 {[%clk 0:01:34]} 22. Qb2 {[%clk 0:01:28]}  Bc6 {[%clk 0:01:20]} 23. Bf3 {[%clk 0:01:10]}  Bxf3 {[%clk 0:01:19]} 24. gxf3 {[%clk 0:01:11]}  Qd1+ {[%clk 0:01:19]} 25. Kg2 {[%clk 0:01:11]}  Kh7 {[%clk 0:01:17]} 26. Qxb5 {[%clk 0:01:07]}  Rg8+ {[%clk 0:01:17]} 0-1


[Site "https://www.chess.com"]